bitfinex/quotes_BTCUSD_20240101
["timestamp","ask_amount","ask_price","bid_price","bid_amount"]
[1704081076030,0.01574478,42360.0,42357.0,0.3]
[1704081076252,0.01574478,42360.0,42357.0,0.37878]
[1704081076468,0.01574478,42360.0,42358.0,0.0723]
[1704081079180,0.01574478,42360.0,42358.0,0.0773]
[1704081079606,0.01574478,42360.0,42359.0,0.08244]
[1704081079823,0.3975646,42366.0,42360.0,0.09868289]
[1704081079824,0.01574478,42364.0,42360.0,0.09868289]
[1704081080046,0.01574478,42364.0,42360.0,0.57082489]
[1704081080264,0.01574478,42364.0,42361.0,0.20196]
[1704081082162,0.02074478,42364.0,42361.0,0.20196]
[1704081082375,0.02374478,42364.0,42361.0,0.20196]
[1704081084058,0.02374478,42364.0,42361.0,0.10098]
[1704081084498,0.23264478,42364.0,42361.0,0.10098]
[1704081084709,0.22764478,42364.0,42361.0,0.07584]
[1704081084914,0.22764478,42364.0,42362.0,0.06822]
[1704081084915,0.22964478,42364.0,42362.0,0.06822]
[1704081085369,0.22764478,42364.0,42361.0,0.07434]
[1704081085574,0.22464478,42364.0,42363.0,0.06036]
[1704081085779,0.23264478,42364.0,42362.0,0.06804]
[1704081086001,0.23264478,42364.0,42363.0,0.06108]
[1704081086215,0.22964478,42364.0,42363.0,0.06108]
[1704081086438,0.23264478,42364.0,42363.0,0.06108]
[1704081086665,0.23264478,42364.0,42363.0,0.06186]
[1704081087089,0.23264478,42364.0,42361.0,0.07704]
[1704081087300,0.22764478,42364.0,42361.0,0.07704]
[1704081087516,0.23264478,42364.0,42361.0,0.20184]
[1704081087779,0.23264478,42364.0,42362.0,0.19056]
[1704081087985,0.22464478,42364.0,42361.0,0.20532]
[1704081088169,0.22764478,42364.0,42363.0,0.08262]
[1704081088416,0.22964478,42364.0,42362.0,0.08844]
[1704081088625,0.22964478,42364.0,42361.0,0.19884]
[1704081088830,0.22764478,42364.0,42363.0,0.08358]
[1704081089062,0.22764478,42364.0,42362.0,0.19704]
[1704081089241,0.2169,42364.0,42363.0,0.09108]
[1704081089448,0.005,42364.0,42363.0,0.18444]
[1704081089876,0.005,42364.0,42361.0,0.21564]
[1704081089877,0.008,42364.0,42361.0,0.21564]
[1704081090022,0.008,42364.0,42363.0,0.0933]
[1704081090244,0.008,42364.0,42362.0,0.20124]
[1704081090245,0.01874478,42364.0,42362.0,0.20124]
[1704081090472,0.003,42364.0,42363.0,0.66421289]
[1704081090672,0.008,42364.0,42363.0,0.81151289]
[1704081091074,0.2177,42370.0,42363.0,0.81151289]
[1704081091075,0.01574478,42369.0,42365.0,0.09868289]
[1704081091376,0.01574478,42368.0,42366.0,0.20088]
[1704081091583,0.01574478,42368.0,42366.0,0.10044]
[1704081091778,0.01574478,42368.0,42367.0,0.08052]
[1704081092259,0.01574478,42368.0,42366.0,0.08778]
[1704081092466,0.01574478,42368.0,42365.0,0.19342289]
[1704081092467,0.01574478,42368.0,42367.0,0.08238]
[1704081092667,0.01774478,42368.0,42366.0,0.09048]
[1704081092902,0.01574478,42368.0,42366.0,0.09048]
[1704081093116,0.01574478,42368.0,42367.0,0.0831]
[1704081093531,0.01574478,42368.0,42366.0,0.08832]
[1704081093739,0.01574478,42368.0,42366.0,0.08844]
[1704081093943,0.01874478,42368.0,42367.0,0.08226]
[1704081094164,0.02074478,42368.0,42367.0,0.08226]
[1704081094374,0.01774478,42368.0,42367.0,0.08256]
[1704081094585,0.01574478,42368.0,42367.0,0.08256]
[1704081094797,0.01574478,42368.0,42366.0,0.08946]
[1704081095013,0.01574478,42368.0,42366.0,0.08808]
[1704081095226,0.02074478,42368.0,42366.0,0.08808]
[1704081095488,0.01874478,42368.0,42366.0,0.08808]
[1704081095926,0.02074478,42368.0,42366.0,0.08808]
[1704081096108,0.01874478,42368.0,42366.0,0.08808]
[1704081097516,0.01874478,42368.0,42366.0,0.17988]
[1704081097517,0.005,42368.0,42366.0,0.17988]
[1704081097724,0.02074478,42368.0,42367.0,0.0843]
[1704081097929,0.02074478,42368.0,42367.0,0.0861]
[1704081098147,0.005,42368.0,42367.0,0.0861]
[1704081098349,0.005,42368.0,42366.0,0.18636]
[1704081098549,0.002,42368.0,42367.0,0.18144]
[1704081098692,0.24984478,42369.0,42367.0,0.09072]
[1704081098891,0.24984478,42369.0,42367.0,0.18156]
[1704081099095,0.002,42368.0,42367.0,0.09072]
[1704081099303,0.24984478,42369.0,42368.0,0.08502]
[1704081099503,0.2241,42369.0,42367.0,0.09594]
[1704081099711,0.01574478,42372.0,42369.0,0.09868289]
[1704081099919,0.01574478,42372.0,42369.0,0.57071689]
[1704081100125,0.01574478,42372.0,42370.0,0.2022]
[1704081100342,0.01574478,42373.0,42370.0,0.2022]
[1704081101604,0.22244478,42378.0,42374.0,0.09868289]
[1704081102026,0.01,42377.0,42375.0,0.08742]
[1704081102547,0.01,42376.0,42374.0,0.0963]
[1704081102754,0.02574478,42376.0,42374.0,0.07392]
[1704081102956,0.12706189,42376.0,42375.0,0.0579]
[1704081103195,0.29604942,42376.0,42375.0,0.0579]
[1704081103430,0.29604942,42376.0,42369.0,0.09868289]
[1704081103431,0.29604942,42376.0,42370.0,0.08172]
[1704081103639,0.01574478,42372.0,42370.0,0.08172]
[1704081105085,0.01774478,42372.0,42370.0,0.08172]
[1704081105299,0.01574478,42371.0,42370.0,0.08172]
[1704081105505,0.01574478,42371.0,42370.0,0.04884]
[1704081105888,0.01574478,42371.0,42367.0,0.0705]
[1704081106127,0.01574478,42370.0,42367.0,0.0705]
[1704081106347,0.01574478,42370.0,42366.0,0.37518]
[1704081106567,0.01574478,42370.0,42368.0,0.06216]
[1704081106787,0.01574478,42370.0,42367.0,0.05964]
[1704081107222,0.01574478,42370.0,42369.0,0.04914]
[1704081107430,0.01574478,42370.0,42368.0,0.05832]
[1704081107841,0.01574478,42370.0,42369.0,0.05526]
[1704081108340,0.01574478,42370.0,42367.0,0.07258]
[1704081108749,0.01874478,42370.0,42369.0,0.05784]
[1704081108952,0.01874478,42370.0,42368.0,0.07146]
[1704081109176,0.01874478,42370.0,42369.0,0.06822]
[1704081109397,0.01874478,42370.0,42367.0,0.08482]
[1704081109608,0.01874478,42370.0,42367.0,0.08382]
[1704081109817,0.01874478,42370.0,42366.0,0.39868289]
[1704081109818,0.02374478,42370.0,42369.0,0.06954]
[1704081110020,0.02074478,42370.0,42368.0,0.07644]
[1704081110230,0.02074478,42370.0,42369.0,0.06834]
[1704081110451,0.01874478,42370.0,42369.0,0.06834]
[1704081110688,0.02074478,42370.0,42367.0,0.0825]
[1704081110900,0.02374478,42370.0,42369.0,0.06846]
[1704081111109,0.02374478,42370.0,42368.0,0.77808589]
[1704081111110,0.008,42370.0,42368.0,0.77808589]
[1704081111315,0.003,42370.0,42368.0,0.57072589]
[1704081111527,0.008,42370.0,42369.0,0.20784]
[1704081111745,0.005,42370.0,42369.0,0.20784]
[1704081112204,0.007,42370.0,42369.0,0.77856589]
[1704081112623,0.007,42370.0,42369.0,0.30652289]
[1704081112828,0.002,42370.0,42369.0,0.77856589]
[1704081113470,0.02574478,42374.0,42370.0,0.09868289]
[1704081113867,0.02574478,42374.0,42371.0,0.18264]
[1704081114073,0.02574478,42374.0,42371.0,0.09132]
[1704081114286,0.02574478,42374.0,42371.0,0.1821]
[1704081114530,0.02574478,42374.0,42372.0,0.08358]
[1704081114741,0.03074478,42374.0,42372.0,0.08358]
[1704081114951,0.03374478,42374.0,42372.0,0.08358]
[1704081115161,0.03074478,42374.0,42372.0,0.08358]
[1704081115377,0.03074478,42374.0,42371.0,0.0894]
[1704081115604,0.03074478,42374.0,42373.0,0.07506]
[1704081115824,0.03074478,42374.0,42372.0,0.08898]
[1704081116036,0.02574478,42374.0,42371.0,0.19074]
[1704081116250,0.01574478,42374.0,42373.0,0.0834]
[1704081116460,0.02074478,42374.0,42372.0,0.17728]
[1704081116666,0.02374478,42374.0,42372.0,0.09114]
[1704081116885,0.02874478,42374.0,42373.0,0.08184]
[1704081117108,0.01874478,42374.0,42373.0,0.08184]
[1704081117320,0.03074478,42374.0,42371.0,0.19068]
[1704081117528,0.002,42374.0,42373.0,0.0798]
[1704081117735,0.2167,42376.0,42373.0,0.09868289]
[1704081117940,0.2267,42376.0,42374.0,0.09868289]
[1704081118151,0.2267,42376.0,42374.0,0.18370289]
[1704081118408,0.2267,42376.0,42375.0,0.08058]
[1704081119851,0.2267,42376.0,42375.0,0.06192]
[1704081120267,0.2267,42376.0,42373.0,0.07434]
[1704081120471,0.2297,42376.0,42373.0,0.07434]
[1704081120936,0.2327,42376.0,42373.0,0.07434]
[1704081121138,0.01574478,42375.0,42373.0,0.07434]
[1704081121577,0.01574478,42375.0,42372.0,0.063]
[1704081121784,0.01574478,42375.0,42374.0,0.04974]
[1704081122004,0.01574478,42375.0,42373.0,0.05772]
[1704081122243,0.01574478,42375.0,42372.0,0.06588]
[1704081122456,0.01574478,42375.0,42374.0,0.0588]
[1704081122660,0.01574478,42375.0,42373.0,0.06768]
[1704081122872,0.01574478,42375.0,42372.0,0.07416]
[1704081123081,0.01574478,42375.0,42374.0,0.0594]
[1704081123292,0.01774478,42375.0,42373.0,0.06624]
[1704081123515,0.02774478,42375.0,42374.0,0.05898]
[1704081123721,0.01,42373.0,42371.0,0.09868289]
[1704081124142,0.01,42373.0,42372.0,0.07362]
[1704081126509,0.01,42373.0,42372.0,0.002]
[1704081126716,0.01,42373.0,42372.0,0.06204]
[1704081126930,0.01,42373.0,42372.0,0.003]
[1704081127076,0.01,42373.0,42372.0,0.06426]
[1704081127507,0.01,42373.0,42372.0,0.003]
[1704081128146,0.18154558,42373.0,42372.0,0.001]
[1704081128526,0.18154558,42373.0,42372.0,0.0499]
[1704081128527,0.02574478,42373.0,42372.0,0.0499]
[1704081129111,0.02574478,42373.0,42372.0,0.06438]
[1704081129534,0.02774478,42373.0,42370.0,0.07782]
[1704081129741,0.02774478,42373.0,42372.0,0.0636]
[1704081129918,0.02774478,42373.0,42370.0,0.07776]
[1704081129919,0.02574478,42373.0,42370.0,0.07776]
[1704081130153,0.02574478,42373.0,42372.0,0.06312]
[1704081130400,0.02574478,42373.0,42370.0,0.0777]
[1704081130604,0.02574478,42373.0,42372.0,0.06204]
[1704081130817,0.02574478,42373.0,42370.0,0.0763]
[1704081131024,0.02574478,42373.0,42372.0,0.0609]
[1704081131236,0.02574478,42373.0,42370.0,0.07428]
[1704081131445,0.02574478,42373.0,42372.0,0.06556]
[1704081131659,0.02574478,42373.0,42372.0,0.001]
[1704081132078,0.02574478,42373.0,42372.0,0.06406]
[1704081132502,0.02574478,42373.0,42372.0,0.001]
[1704081132713,0.02574478,42373.0,42372.0,0.07528]
[1704081132916,0.02574478,42373.0,42372.0,0.001]
[1704081133129,0.02574478,42373.0,42372.0,0.07416]
[1704081133335,0.02574478,42373.0,42370.0,0.0882]
[1704081133520,0.02574478,42373.0,42370.0,0.08806]
[1704081133722,0.02574478,42373.0,42370.0,0.08706]
[1704081134180,0.02574478,42373.0,42372.0,0.001]
[1704081134360,0.02574478,42373.0,42370.0,0.08706]
[1704081134820,0.02574478,42373.0,42370.0,0.08806]
[1704081135036,0.02574478,42373.0,42370.0,0.08706]
[1704081136518,0.03574478,42373.0,42370.0,0.08706]
[1704081136725,0.03074478,42373.0,42370.0,0.17916]
[1704081136944,0.005,42373.0,42372.0,0.09868289]
[1704081137159,0.005,42373.0,42372.0,0.627194]
[1704081137160,0.008,42373.0,42372.0,0.627194]
[1704081137368,0.005,42373.0,42372.0,1.58239583]
[1704081137606,0.24234478,42382.0,42378.0,0.09868289]
[1704081137836,0.2266,42382.0,42378.0,0.09868289]
[1704081138073,0.01574478,42385.0,42379.0,0.21384]
[1704081138074,0.01,42385.0,42379.0,0.21384]
[1704081138280,0.2366,42384.0,42379.0,0.21384]
[1704081139560,0.25234478,42384.0,42379.0,0.21384]
[1704081139784,0.25834478,42384.0,42379.0,0.21484]
[1704081140030,0.002,42382.0,42379.0,0.21484]
[1704081140452,0.24834478,42384.0,42379.0,0.21484]
[1704081140672,0.01574478,42383.0,42379.0,0.21484]
[1704081140878,0.2266,42384.0,42379.0,0.21384]
[1704081141106,0.01574478,42381.0,42379.0,0.21384]
[1704081141363,0.01574478,42381.0,42379.0,0.10792]
[1704081141575,0.01574478,42381.0,42380.0,0.04674]
[1704081141788,0.01574478,42381.0,42379.0,0.05208]
[1704081141789,0.24004478,42381.0,42379.0,0.05208]
[1704081142013,0.01574478,42380.0,42377.0,0.0675]
[1704081142222,0.01574478,42377.0,42376.0,0.05004]
[1704081142430,0.1,42378.0,42372.0,0.09868289]
[1704081142431,0.01574478,42375.0,42372.0,0.09868289]
[1704081142857,0.01574478,42375.0,42373.0,0.07734]
[1704081143939,0.01674478,42375.0,42373.0,0.07734]
[1704081144144,0.001,42375.0,42373.0,0.07734]
[1704081144322,0.002,42375.0,42374.0,0.09868289]
[1704081144545,0.002,42375.0,42374.0,0.15528062]
[1704081144750,0.002,42375.0,42374.0,1.38555469]
[1704081144956,0.002,42375.0,42374.0,1.49875015]
[1704081145185,0.002,42375.0,42374.0,1.85754169]
[1704081145385,0.001,42375.0,42374.0,1.79514079]
[1704081145587,0.002,42375.0,42374.0,1.79514079]
[1704081145794,0.002,42375.0,42374.0,1.7384867]
[1704081145997,0.001,42375.0,42374.0,1.73849073]
[1704081146198,0.01574478,42381.0,42378.0,0.09868289]
[1704081146401,0.22564478,42381.0,42378.0,0.09868289]
[1704081146618,0.22564478,42381.0,42379.0,0.07284]
[1704081149142,0.22764478,42381.0,42379.0,0.07284]
[1704081149501,0.22564478,42381.0,42379.0,0.07284]
[1704081149914,0.22764478,42381.0,42379.0,0.07284]
[1704081150309,0.22564478,42381.0,42379.0,0.07284]
[1704081150716,0.22764478,42381.0,42379.0,0.07284]
[1704081152057,0.22764478,42381.0,42377.0,0.0834]
[1704081152255,0.22764478,42381.0,42380.0,0.06396]
[1704081152455,0.22764478,42381.0,42378.0,0.08124]
[1704081152665,0.22564478,42381.0,42377.0,0.08958]
[1704081152892,0.2119,42381.0,42378.0,0.09868289]
[1704081153097,0.2119,42381.0,42378.0,0.30088289]
[1704081153303,0.2119,42381.0,42379.0,0.18564]
[1704081153455,0.22764478,42381.0,42379.0,0.18564]
[1704081153852,0.22564478,42381.0,42379.0,0.18564]
[1704081154079,0.22764478,42381.0,42379.0,0.09282]
[1704081154275,0.22764478,42381.0,42380.0,0.0828]
[1704081154681,0.22764478,42381.0,42379.0,0.08868]
[1704081154879,0.22764478,42381.0,42380.0,0.08094]
[1704081155330,0.22764478,42381.0,42380.0,0.05994]
[1704081155532,0.22564478,42381.0,42380.0,0.05994]
[1704081155736,0.01574478,42380.0,42377.0,0.0792]
[1704081155912,0.01574478,42380.0,42376.0,0.57063989]
[1704081156268,0.01574478,42380.0,42378.0,0.0765]
[1704081156430,0.01574478,42380.0,42377.0,0.08406]
[1704081156647,0.01574478,42380.0,42379.0,0.07056]
[1704081156846,0.01574478,42380.0,42378.0,0.07848]
[1704081157071,0.01574478,42380.0,42376.0,0.471957]
[1704081157072,0.01574478,42380.0,42379.0,0.06474]
[1704081157342,0.2099,42381.0,42377.0,0.05502]
[1704081157343,0.11706189,42378.0,42377.0,0.05502]
[1704081157548,0.12706189,42378.0,42377.0,0.05502]
[1704081157773,0.28019759,42378.0,42377.0,0.05602]
[1704081157977,0.28019759,42378.0,42377.0,0.001]
[1704081158520,0.01574478,42374.0,42372.0,0.06312]
[1704081158725,0.01574478,42374.0,42373.0,0.05046]
[1704081158932,0.01574478,42374.0,42372.0,0.06126]
[1704081159190,0.01574478,42374.0,42370.0,0.472031]
[1704081159191,0.01574478,42371.0,42370.0,0.04782]
[1704081159392,0.01574478,42371.0,42368.0,0.09868289]
[1704081159601,0.2212,42370.0,42368.0,0.09868289]
[1704081159799,0.2212,42370.0,42369.0,0.08046]
[1704081160423,0.2212,42370.0,42369.0,0.1725]
[1704081161028,0.002,42371.0,42369.0,0.27118289]
[1704081161240,0.002,42371.0,42369.0,0.31000289]
[1704081161440,0.002,42371.0,42370.0,0.2118]
[1704081161653,0.002,42371.0,42370.0,0.1059]
[1704081161874,0.02574478,42373.0,42370.0,0.1059]
[1704081162092,0.02574478,42373.0,42370.0,0.19752]
[1704081162296,0.01574478,42375.0,42371.0,0.09868289]
[1704081162684,0.01,42374.0,42372.0,0.1824]
[1704081162909,0.01,42374.0,42372.0,0.0912]
[1704081164186,0.015,42374.0,42372.0,0.0912]
[1704081164391,0.01,42373.0,42372.0,0.0912]
[1704081165348,0.01,42373.0,42372.0,0.0922]
[1704081165993,0.01,42373.0,42372.0,0.0912]
[1704081166281,0.015,42373.0,42372.0,0.0912]
[1704081166504,0.015,42373.0,42372.0,0.07302]
[1704081166710,0.01,42373.0,42372.0,0.07302]
[1704081166947,0.01,42373.0,42370.0,0.09066]
[1704081167147,0.12706189,42373.0,42372.0,0.06408]
[1704081167351,0.01574478,42371.0,42366.0,0.66417789]
[1704081167593,0.01574478,42371.0,42368.0,0.08094]
[1704081167793,0.207,42370.0,42367.0,0.08874]
[1704081167974,0.22274478,42370.0,42367.0,0.08874]
[1704081168177,0.22274478,42370.0,42369.0,0.07656]
[1704081168389,0.22274478,42370.0,42367.0,0.17994]
[1704081168541,0.22274478,42370.0,42369.0,0.07296]
[1704081168747,0.22274478,42370.0,42368.0,0.08314]
[1704081168950,0.22274478,42370.0,42369.0,0.07482]
[1704081169147,0.22274478,42370.0,42368.0,0.001]
[1704081169324,0.22274478,42370.0,42369.0,0.07458]
[1704081169530,0.22274478,42370.0,42368.0,0.08296]
[1704081169726,0.22274478,42370.0,42369.0,0.0747]
[1704081170186,0.22274478,42370.0,42367.0,0.08844]
[1704081170399,0.22274478,42370.0,42369.0,0.003]
[1704081170789,0.22274478,42370.0,42369.0,0.001]
[1704081170984,0.22274478,42370.0,42369.0,0.002]
[1704081171318,0.22274478,42370.0,42369.0,0.001]
[1704081173327,0.22274478,42370.0,42369.0,0.07156]
[1704081173730,0.22274478,42370.0,42369.0,0.001]
[1704081173910,0.22274478,42370.0,42369.0,0.06688]
[1704081174117,0.22274478,42370.0,42369.0,0.001]
[1704081174339,0.22274478,42370.0,42369.0,0.06538]
[1704081174926,0.22274478,42370.0,42369.0,0.001]
[1704081175133,0.22274478,42370.0,42369.0,0.07996]
[1704081175338,0.22274478,42370.0,42369.0,0.00099957]
[1704081175545,0.22274478,42370.0,42369.0,0.08283957]
[1704081175925,0.22274478,42370.0,42369.0,0.00099957]
[1704081176131,0.22274478,42370.0,42369.0,0.08529957]
[1704081176336,0.22274478,42370.0,42369.0,0.00099957]
[1704081176543,0.22274478,42370.0,42369.0,0.08601957]
[1704081176925,0.22274478,42370.0,42369.0,0.00099957]
[1704081177120,0.22274478,42370.0,42369.0,0.08649957]
[1704081177323,0.22274478,42370.0,42369.0,0.00099957]
[1704081177530,0.22274478,42370.0,42369.0,0.08619957]
[1704081177904,0.22274478,42370.0,42369.0,0.00099957]
[1704081178111,0.22274478,42370.0,42369.0,0.08649957]
[1704081178378,0.22274478,42370.0,42369.0,0.00099957]
[1704081178581,0.22274478,42370.0,42369.0,0.08727957]
[1704081178956,0.22274478,42370.0,42369.0,0.00099957]
[1704081179599,0.22274478,42370.0,42369.0,0.08277957]
[1704081180066,0.22274478,42370.0,42369.0,0.00099957]
[1704081180478,0.22274478,42370.0,42369.0,0.08589957]
[1704081181245,0.32406189,42370.0,42369.0,0.00099957]
[1704081181475,0.47182298,42370.0,42369.0,0.00099957]
[1704081181678,0.94385498,42370.0,42369.0,0.00099957]
[1704081181847,1.17707209,42370.0,42369.0,0.00099957]
[1704081182749,1.18607209,42370.0,42369.0,0.001]
[1704081183142,1.19407209,42370.0,42369.0,0.002]
[1704081183358,1.19407209,42370.0,42369.0,0.001]
[1704081183359,1.18607209,42370.0,42369.0,0.001]
[1704081183773,1.19507209,42370.0,42369.0,0.002]
[1704081184013,1.18607209,42370.0,42369.0,0.001]
[1704081184287,1.18607209,42370.0,42360.0,0.07614]
[1704081184288,1.17707209,42370.0,42360.0,0.07614]
[1704081184500,1.17707209,42370.0,42369.0,0.001]
[1704081184501,0.95585498,42370.0,42369.0,0.001]
[1704081184714,0.96685498,42370.0,42369.0,0.002]
[1704081185134,0.94385498,42370.0,42362.0,0.0717]
[1704081185348,0.94385498,42370.0,42364.0,0.05868]
[1704081185602,0.01,42365.0,42363.0,0.06552]
[1704081185832,0.01,42365.0,42360.0,0.001]
[1704081186063,0.2153,42364.0,42359.0,0.57083489]
[1704081186313,0.2153,42364.0,42362.0,0.001]
[1704081187465,0.01574478,42363.0,42362.0,0.001]
[1704081189224,0.3203,42364.0,42360.0,0.0861]
[1704081189225,0.01574478,42362.0,42360.0,0.0861]
[1704081191682,0.01774478,42362.0,42360.0,0.0861]
[1704081200253,0.01774478,42362.0,42360.0,0.558243]
[1704081200466,0.002,42362.0,42361.0,0.472132]
[1704081200697,0.002,42362.0,42361.0,0.704572]
[1704081201329,0.01,42365.0,42361.0,0.704572]
[1704081201537,0.2073,42366.0,42361.0,0.704572]
[1704081201538,0.2173,42366.0,42361.0,0.33112289]
[1704081201757,0.2073,42373.0,42368.0,0.09868289]
[1704081202002,0.01574478,42373.0,42371.0,0.472019]
[1704081202424,0.02574478,42373.0,42372.0,0.18312]
[1704081203705,0.02774478,42373.0,42372.0,0.18312]
[1704081204340,0.03074478,42373.0,42372.0,0.09156]
[1704081204602,0.03074478,42373.0,42372.0,0.18372]
[1704081204814,0.03074478,42373.0,42372.0,0.18366]
[1704081205363,0.015,42373.0,42372.0,0.18366]
[1704081206197,0.03074478,42373.0,42372.0,0.18366]
[1704081206477,0.015,42373.0,42372.0,0.18366]
[1704081206719,0.01,42373.0,42372.0,0.18366]
[1704081206982,0.03074478,42373.0,42372.0,0.18366]
[1704081207220,0.02874478,42373.0,42372.0,0.09156]
[1704081207456,0.02574478,42373.0,42372.0,0.09156]
[1704081207689,0.02774478,42373.0,42372.0,0.09156]
[1704081207888,0.03074478,42373.0,42372.0,0.09156]
[1704081210735,0.11574478,42371.0,42370.0,0.04752]
[1704081210952,0.11574478,42371.0,42368.0,0.06378]
[1704081211182,0.11574478,42369.0,42368.0,0.06378]
[1704081211389,0.11574478,42369.0,42366.0,0.05124]
[1704081211616,0.01574478,42367.0,42366.0,0.05124]
[1704081212280,0.11706189,42367.0,42366.0,0.05124]
[1704081212494,0.11706189,42366.0,42364.0,0.05904]
[1704081212720,0.11706189,42365.0,42364.0,0.05904]
[1704081212931,0.11706189,42365.0,42363.0,0.06432]
[1704081213145,0.11706189,42365.0,42360.0,0.3]
[1704081213354,0.11706189,42365.0,42364.0,0.05772]
[1704081213575,0.11706189,42365.0,42361.0,0.08304]
[1704081213790,0.11706189,42365.0,42364.0,0.05904]
[1704081214002,0.12206189,42365.0,42364.0,0.05904]
[1704081214220,0.12206189,42365.0,42362.0,0.0732]
[1704081214443,0.12806189,42365.0,42364.0,0.05916]
[1704081214660,0.12806189,42365.0,42363.0,0.06588]
[1704081214894,0.12806189,42365.0,42361.0,0.08256]
[1704081215104,0.12806189,42365.0,42364.0,0.06024]
[1704081215316,0.12806189,42365.0,42362.0,0.06978]
[1704081215526,0.12306189,42365.0,42361.0,0.07716]
[1704081215735,0.12306189,42365.0,42360.0,0.301]
[1704081215736,0.11706189,42365.0,42363.0,0.06654]
[1704081215983,0.11574478,42364.0,42362.0,0.07602]
[1704081216184,0.01574478,42362.0,42360.0,0.3]
[1704081216388,0.01574478,42362.0,42359.0,0.39744]
[1704081216601,0.01574478,42362.0,42361.0,0.08076]
[1704081216809,0.01574478,42362.0,42359.0,0.39744]
[1704081216810,0.01574478,42362.0,42360.0,0.38742]
[1704081217016,0.01574478,42362.0,42361.0,0.0798]
[1704081217306,0.01574478,42362.0,42361.0,0.07218]
[1704081217736,0.01574478,42362.0,42360.0,0.38034]
[1704081217946,0.01774478,42362.0,42361.0,0.07284]
[1704081219004,0.01774478,42362.0,42360.0,0.07764]
[1704081219232,0.01574478,42362.0,42361.0,0.07098]
[1704081219442,0.01774478,42362.0,42361.0,0.07026]
[1704081219895,0.01774478,42362.0,42360.0,0.08112]
[1704081220074,0.01574478,42362.0,42361.0,0.0735]
[1704081220305,0.11574478,42362.0,42361.0,0.0735]
[1704081220519,0.11574478,42362.0,42360.0,0.0666]
[1704081220520,0.11574478,42361.0,42360.0,0.0666]
[1704081220731,0.11574478,42361.0,42359.0,0.3]
[1704081220947,0.01574478,42357.0,42354.0,1.22798489]
[1704081221373,0.23934478,42357.0,42355.0,0.05904]
[1704081223114,0.36661903,42357.0,42355.0,0.05904]
[1704081223778,0.36761903,42357.0,42355.0,0.06504]
[1704081224196,0.36761903,42357.0,42356.0,0.04758]
[1704081224408,0.36961903,42357.0,42356.0,0.07058]
[1704081225267,0.36661903,42357.0,42356.0,0.07058]
[1704081225480,0.23934478,42357.0,42356.0,0.07058]
[1704081225889,0.24234478,42357.0,42356.0,0.07058]
[1704081226315,0.23934478,42357.0,42356.0,0.07058]
[1704081226738,0.24434478,42357.0,42356.0,0.07058]
[1704081229243,0.34434478,42357.0,42354.0,0.05106]
[1704081229447,0.01574478,42355.0,42354.0,0.05106]
[1704081229650,0.01574478,42355.0,42354.0,0.023]
[1704081230290,0.01574478,42355.0,42354.0,0.0758]
[1704081230717,0.01574478,42355.0,42354.0,0.0768]
[1704081231655,0.12574478,42355.0,42354.0,0.001]
[1704081232285,0.12706189,42355.0,42354.0,0.001]
[1704081233355,0.11574478,42350.0,42349.0,0.05406]
[1704081233777,0.11574478,42350.0,42344.0,0.666411]
[1704081233778,0.02574478,42349.0,42348.0,0.04764]
[1704081234010,0.01574478,42348.0,42345.0,0.06804]
[1704081234266,0.11574478,42346.0,42345.0,0.06804]
[1704081234734,0.11574478,42346.0,42342.0,0.08898]
[1704081235448,0.01574478,42345.0,42342.0,0.08898]
[1704081235654,0.01574478,42345.0,42343.0,0.18708]
[1704081235903,0.01574478,42348.0,42345.0,0.09868289]
[1704081236343,0.01574478,42348.0,42346.0,0.18372]
[1704081236575,0.01574478,42348.0,42347.0,0.023]
[1704081236784,0.02574478,42349.0,42347.0,0.023]
[1704081236998,0.01574478,42348.0,42347.0,0.023]
[1704081237208,0.01574478,42350.0,42348.0,0.08772]
[1704081237427,0.01,42349.0,42347.0,0.21056]
[1704081237652,0.01574478,42348.0,42347.0,0.023]
[1704081237891,0.01874478,42348.0,42347.0,0.023]
[1704081238095,0.01574478,42348.0,42347.0,0.10946]
[1704081238311,0.01974478,42348.0,42347.0,0.10946]
[1704081238928,0.01574478,42348.0,42347.0,0.10946]
[1704081239136,0.01874478,42348.0,42347.0,0.10946]
[1704081239770,0.01574478,42348.0,42347.0,0.10946]
[1704081239975,0.01774478,42348.0,42347.0,0.10946]
[1704081240597,0.01974478,42348.0,42347.0,0.10946]
[1704081240802,0.01774478,42348.0,42347.0,0.10946]
[1704081243608,0.01774478,42348.0,42347.0,0.08336]
[1704081249688,0.002,42348.0,42347.0,0.08336]
[1704081249907,0.002,42348.0,42347.0,1.37728322]
[1704081250548,0.002,42348.0,42347.0,1.67728322]
[1704081250784,0.002,42348.0,42347.0,1.52200322]
[1704081251000,0.002,42348.0,42347.0,1.364548]
[1704081251209,0.002,42348.0,42347.0,1.13833089]
[1704081251210,0.003,42348.0,42347.0,1.13833089]
[1704081251424,0.001,42348.0,42347.0,1.039648]
[1704081251633,0.01131711,42354.0,42347.0,0.877548]
[1704081251634,0.01574478,42349.0,42347.0,0.877548]
[1704081251842,0.001,42348.0,42347.0,0.887548]
[1704081252063,0.001,42348.0,42347.0,0.805288]
[1704081252273,0.001,42348.0,42347.0,0.996208]
[1704081252484,0.01574478,42349.0,42347.0,0.990208]
[1704081252698,0.01574478,42349.0,42348.0,0.3]
[1704081252907,0.01574478,42349.0,42348.0,0.413]
[1704081253342,0.01574478,42349.0,42348.0,0.50504]
[1704081254181,0.01574478,42349.0,42348.0,0.51104]
[1704081254392,0.01574478,42349.0,42348.0,0.50504]
[1704081254681,0.01,42354.0,42349.0,0.09868289]
[1704081254902,0.01,42354.0,42351.0,0.09868289]
[1704081255117,0.01,42354.0,42352.0,0.495224]
[1704081255424,0.01,42354.0,42353.0,0.20328]
[1704081255631,0.01,42354.0,42353.0,0.22628]
[1704081256290,0.01,42354.0,42353.0,0.12464]
[1704081256501,0.02,42354.0,42353.0,0.12464]
[1704081256921,0.014,42354.0,42353.0,0.12464]
[1704081257145,0.017,42354.0,42353.0,0.12464]